bitfinex-derivatives/quotes_ETHF0:USTF0_20250507
["timestamp","ask_amount","ask_price","bid_price","bid_amount"]
[1746645385327,1.11057,1800.6,1800.5,1.11058]
[1746645386128,1.11057,1800.6,1800.5,4.71058]
[1746645386929,1.11057,1800.6,1800.5,3.6]
[1746645387427,1.11057,1800.6,1800.5,4.71063]
[1746645388937,1.11057,1800.6,1800.5,3.6]
[1746645389323,9.31837,1800.6,1800.5,3.6]
[1746645389527,11.51787,1800.6,1800.5,3.6]
[1746645390222,1.11075,1800.3,1800.2,4.2331]
[1746645390532,4.31855,1800.3,1800.2,2.1508]
[1746645390725,1.11075,1800.3,1800.2,2.1508]
[1746645390920,1.11094,1800.0,1799.9,3.31725]
[1746645391125,1.111,1799.9,1799.8,2.2815]
[1746645391321,1.11112,1799.7,1799.6,11.06272104]
[1746645391521,4.31892,1799.7,1799.6,11.06272104]
[1746645391932,6.40522,1799.7,1799.6,11.06272104]
[1746645392325,6.40522,1799.7,1799.6,6.22214792]
[1746645392529,16.02622,1799.7,1799.6,3.61325792]
[1746645392719,16.12838855,1799.7,1799.6,0.98890656]
[1746645392926,1.11151,1799.1,1798.9,6.99309]
[1746645393234,1.11149,1799.2,1799.0,1.11156]
[1746645393629,2.0863,1799.2,1798.9,5.8815]
[1746645393829,3.19777,1799.2,1799.0,1.11155]
[1746645394030,3.2078,1799.5,1799.2,1.11143]
[1746645394225,4.31909,1799.5,1799.3,1.11136]
[1746645394427,3.2078,1799.5,1799.4,1.11131]
[1746645394735,4.31906,1799.5,1799.3,1.11131]
[1746645394933,3.2078,1799.5,1799.4,1.11131]
[1746645395231,3.2078,1799.5,1799.4,4.71131]
[1746645396838,4.31905,1799.5,1799.4,5.7675]
[1746645397041,4.31905,1799.5,1799.4,6.87881]
[1746645397234,4.31905,1799.5,1799.4,5.7675]
[1746645397835,4.31905,1799.5,1799.4,3.6]
[1746645398433,16.19195,1799.5,1799.4,3.6]
[1746645398636,18.41115,1799.5,1799.4,3.6]
[1746645399036,13.41115,1799.5,1799.4,3.6]
[1746645399238,13.41115,1799.5,1799.1,2.1675]
[1746645399239,1.11143,1799.2,1799.1,2.1675]
[1746645399426,1.11143,1799.2,1799.1,3.279]
[1746645399626,3.2078,1799.3,1799.1,2.1675]
[1746645399826,1.11143,1799.2,1799.1,2.1675]
[1746645400027,3.36233,1799.2,1799.1,2.1675]
[1746645400238,10.049,1799.5,1799.2,1.1114]
[1746645400441,3.36226,1799.4,1799.2,3.1815]
[1746645400639,7.8298,1799.5,1799.2,2.0701]
[1746645400840,3.2078,1799.5,1799.4,1.11131]
[1746645401043,1.11105,1799.9,1799.4,1.11131]
[1746645401243,2.1099,1799.9,1799.8,1.11106]
[1746645401635,8.71378188,1800.0,1799.9,1.111]
[1746645401940,5.50598188,1800.0,1799.9,1.111]
[1746645402142,5.50598188,1800.0,1799.9,4.711]
[1746645402738,5.50598188,1800.0,1799.9,6.9166]
[1746645403654,5.50598188,1800.0,1799.9,3.6]
[1746645403655,1.11094,1800.0,1799.9,3.6]
[1746645403945,3.22084,1800.0,1799.9,3.6]
[1746645404139,1.11094,1800.0,1799.9,3.6]
[1746645404441,8.26134,1800.0,1799.9,3.6]
[1746645404839,12.56674,1800.0,1799.9,3.6]
[1746645405140,1.11111,1799.8,1799.6,5.51724]
[1746645405341,5.3582,1799.9,1799.6,5.51724]
[1746645405540,2.1504,1799.8,1799.6,5.51724]
[1746645405739,1.11112,1799.7,1799.6,5.51724]
[1746645406141,1.11112,1799.7,1799.6,4.4061]
[1746645406337,1.11112,1799.7,1799.6,5.51729]
[1746645406537,2.1504,1799.8,1799.6,5.51729]
[1746645406739,2.1504,1799.8,1799.7,1.11112]
[1746645407037,3.26148,1799.8,1799.7,2.2005]
[1746645408144,3.26148,1799.8,1799.7,5.8005]
[1746645408537,3.26148,1799.8,1799.7,3.6]
[1746645410242,8.26148,1799.8,1799.7,3.6]
[1746645410543,8.36335834,1799.8,1799.7,3.6]
[1746645410843,8.36335834,1799.8,1799.7,2.25991]
[1746645411041,8.36335834,1799.8,1799.7,1e-05]
[1746645411342,1.11143,1799.2,1799.1,2.157]
[1746645411544,4.31923,1799.2,1799.1,2.157]
[1746645411736,3.2078,1799.6,1799.1,7.157]
[1746645411939,2.148,1799.5,1799.2,1.11139]
[1746645412137,3.2593,1799.5,1799.4,1.11131]
[1746645412342,3.2078,1799.6,1799.5,1.11125]
[1746645412540,2.2838,1799.8,1799.7,1.11112]
[1746645412541,3.25906,1799.8,1799.7,1.11112]
[1746645412738,1.11097,1800.0,1799.8,1.111]
[1746645412940,1.11106,1799.8,1799.6,5.4709]
[1746645413139,1.11106,1799.8,1799.7,2.0616]
[1746645413344,1.11104,1799.9,1799.7,2.0616]
[1746645413546,1.11106,1799.8,1799.7,2.0616]
[1746645413940,3.34015,1799.9,1799.7,3.17267]
[1746645414139,3.34015,1799.9,1799.7,6.77267]
[1746645414441,3.34015,1799.9,1799.8,1.11106]
[1746645414643,1.11099,1800.0,1799.7,5.6616]
[1746645414940,1.111,1799.9,1799.8,1.11104]
[1746645415141,1.111,1799.9,1799.8,3.6]
[1746645415439,4.3188,1799.9,1799.8,3.6]
[1746645416147,4.3188,1799.9,1799.4,5.57347]
[1746645416148,2.77767,1799.8,1799.4,5.57347]
[1746645416444,1.11125,1799.5,1799.4,5.57349]
[1746645416649,1.11123,1799.6,1799.5,1.11125]
[1746645416950,1.11123,1799.6,1799.5,2.1563]
[1746645417151,3.33703,1799.6,1799.5,5.7563]
[1746645418154,3.33703,1799.6,1799.5,3.6]
[1746645419347,1.11131,1799.4,1799.3,2.1515]
[1746645419550,1.11131,1799.4,1799.3,4.411]
[1746645419842,1.11131,1799.4,1799.3,5.52237]
[1746645420152,6.39918,1799.7,1799.5,1.11121]
[1746645420344,1.11119,1799.6,1799.4,5.59707]
[1746645420542,1.11119,1799.6,1799.5,2.2595]
[1746645420742,5.3864,1799.7,1799.5,3.3707]
[1746645420944,1.11099,1800.0,1799.6,5.98577]
[1746645421249,0.05053859,1799.8,1799.7,1.11112]
[1746645421445,0.05053859,1799.8,1799.7,5.47432]
[1746645421846,1.16159859,1799.8,1799.7,4.3632]
[1746645422045,0.05053859,1799.8,1799.7,5.47432]
[1746645422245,3.2078,1800.0,1799.8,1.03491205]
[1746645422450,1.111,1799.9,1799.8,3.27191205]
[1746645423153,1.111,1799.9,1799.8,6.87191205]
[1746645423452,4.31879,1800.0,1799.9,1.111]
[1746645423646,1.11099,1800.0,1799.9,1.111]
[1746645423852,1.11096,1800.0,1799.9,1.11096]
[1746645424047,1.111,1799.9,1799.8,5.837]
[1746645424248,1.11106,1799.8,1799.7,2.1037]
[1746645424450,4.31886,1799.8,1799.7,2.1037]
[1746645424643,1.11119,1799.6,1799.5,3.901]
[1746645424845,5.98589,1799.6,1799.3,2.237]
[1746645425051,1.11131,1799.4,1799.3,3.34837]
[1746645425253,1.11131,1799.4,1799.3,6.94837]
[1746645425455,1.11131,1799.4,1799.3,5.837]
[1746645426548,9.31911,1799.4,1799.3,2.28844]
[1746645426843,1.11162,1798.9,1798.8,7.41228906]
[1746645427046,4.31942,1798.9,1798.8,7.41228906]
[1746645427247,4.31942,1798.9,1798.8,11.01228906]
[1746645428047,6.56072,1798.9,1798.8,11.01228906]
[1746645428244,4.31942,1798.9,1798.8,7.41228906]
[1746645429152,3.2078,1798.9,1798.8,11.01228906]
[1746645429450,4.31942,1798.9,1798.8,11.01228906]
[1746645429653,3.2078,1798.9,1798.8,11.01228906]
[1746645429852,3.2078,1798.9,1798.8,12.12396906]
[1746645430047,3.2078,1799.3,1798.8,11.01228906]
[1746645430253,3.2078,1799.3,1799.2,1.11143]
[1746645430455,4.31921,1799.3,1798.9,3.2078]
[1746645430751,4.31921,1799.3,1799.1,1.11147]
[1746645430946,1.11143,1799.2,1799.0,2.1121]
[1746645431150,1.11149,1799.2,1799.1,2.3206]
[1746645431453,3.23899,1799.2,1799.1,2.3206]
[1746645431955,1.11149,1799.2,1799.1,2.3206]
[1746645432652,1.1115,1799.1,1799.0,3.6]
[1746645432845,4.3193,1799.1,1799.0,3.6]
[1746645433040,1.1115,1799.1,1799.0,3.6]
[1746645433242,6.4468,1799.1,1799.0,3.6]
[1746645434146,1.11162,1798.9,1798.8,3.39828]
[1746645434452,1.11162,1798.9,1798.8,2.2866]
[1746645434958,4.31942,1798.9,1798.8,2.2866]
[1746645435154,4.31942,1798.9,1798.8,5.8866]
[1746645435455,4.31942,1798.9,1798.8,6.99828]
[1746645435654,4.31942,1798.9,1798.8,5.8866]
[1746645436049,1.11162,1798.9,1798.8,5.8866]
[1746645436554,1.11162,1798.9,1798.8,6.99828]
[1746645436853,1.11157,1799.0,1798.8,5.8866]
[1746645437049,2.77845,1799.3,1798.8,11.87359]
[1746645437050,5.512,1799.3,1798.8,11.87359]
[1746645437251,5.50598188,1799.6,1799.2,5.98639]
[1746645437458,6.61717188,1799.6,1799.5,1.11125]
[1746645437658,5.50598188,1799.6,1799.5,4.31905]
[1746645438054,7.32839638,1799.8,1799.7,1.11112]
[1746645438662,7.32839638,1799.8,1799.7,4.31892]
[1746645439158,7.32839638,1799.8,1799.7,15.14622]
[1746645439361,7.32839638,1799.8,1799.7,10.14622]
[1746645439553,8.43945638,1799.8,1799.7,10.14622]
[1746645439858,7.32839638,1799.8,1799.7,10.14622]
[1746645440054,8.43945638,1799.8,1799.7,9.0351]
[1746645440354,1.11106,1799.8,1799.7,5.8273]
[1746645440555,6.62806,1799.8,1799.7,3.6]
[1746645440755,11.62806,1799.8,1799.7,3.6]
[1746645441156,1.11131,1799.4,1799.3,2.1675]
[1746645441553,3.4205,1799.5,1799.4,1.11131]
[1746645441856,1.11131,1799.4,1799.3,5.48812]
[1746645442154,1.1113,1799.5,1799.4,4.71131]
[1746645442353,1.1113,1799.5,1799.4,3.6]
[1746645442753,1.1113,1799.5,1799.4,4.71131]
[1746645442955,1.1113,1799.5,1799.4,3.6]
[1746645443965,1.1113,1799.5,1799.4,4.71131]
[1746645444259,1.11121,1799.6,1799.5,1.11121]
[1746645444860,1.11111,1799.8,1799.7,1.11112]
[1746645445057,1.11085,1800.2,1799.8,2.77766]
[1746645445264,1.11085,1800.2,1800.1,1.11088]
[1746645445458,1.11083,1800.2,1800.1,1.11084]
[1746645445665,1.11083,1800.2,1800.1,2.2345]
[1746645445855,1.11083,1800.2,1800.1,3.34538]
[1746645446057,13.95219638,1800.3,1800.2,1.11082]
[1746645446358,7.32839638,1800.3,1800.2,1.11082]
[1746645446761,7.32839638,1800.3,1800.1,6.55313]
[1746645446961,7.32839638,1800.3,1800.2,1.11082]
[1746645447453,1.11082,1800.2,1800.1,3.34533]
[1746645448563,1.11086,1800.2,1800.1,1.11086]
[1746645449370,1.11088,1800.1,1800.0,4.7109]
[1746645450668,3.35737,1800.2,1800.1,1.11088]
[1746645450869,1.11088,1800.1,1800.0,4.71089]
[1746645451466,1.11088,1800.1,1800.0,4.7109]
[1746645452257,2.2465,1800.2,1800.0,4.7109]
[1746645452258,3.35736,1800.2,1800.1,1.11088]
[1746645452468,1.11088,1800.1,1800.0,4.71091]
[1746645452965,1.11079,1800.3,1800.2,1.11082]
[1746645453174,1.11079,1800.3,1800.2,4.71082]
[1746645454364,2.2177,1800.4,1800.2,4.71082]
[1746645454365,1.1106,1800.6,1800.5,1.11056]
[1746645455169,1.1106,1800.6,1800.5,4.71056]
[1746645455368,1.11056,1800.7,1800.6,1.11053]
[1746645455568,3.32818,1800.8,1800.7,1.11051]
[1746645456065,3.32818,1800.8,1800.7,4.71051]
[1746645456476,1.11048,1800.8,1800.7,4.71051]
[1746645456659,1.11048,1800.8,1800.7,3.6]
[1746645457269,1.11048,1800.8,1800.7,4.71051]
[1746645458366,4.31823,1800.9,1800.8,1.11045]
[1746645458565,1.11043,1800.9,1800.8,2.1116]
[1746645458769,3.22266,1801.0,1800.8,2.1116]
[1746645458968,1.11038,1800.9,1800.8,2.1116]
[1746645459163,1.11037,1801.0,1800.9,1.11038]
[1746645459365,1.11038,1800.9,1800.8,7.928]
[1746645459564,1.11038,1800.9,1800.8,5.8164]
[1746645459766,1.11038,1800.9,1800.8,6.92685]
[1746645460181,1.11038,1800.9,1800.8,3.6]
[1746645463176,3.40196,1801.0,1800.8,3.6]
[1746645463377,1.11038,1800.9,1800.8,4.7104]
[1746645463775,1.11038,1800.9,1800.8,3.6]
[1746645463971,4.31818,1800.9,1800.8,3.6]
[1746645464172,1.11038,1800.9,1800.8,3.6]
[1746645464377,4.31818,1800.9,1800.8,3.6]
[1746645464769,1.11038,1800.9,1800.8,4.71045]
[1746645465081,1.11038,1800.9,1800.8,3.6]
[1746645465574,4.31818,1800.9,1800.8,3.6]
[1746645467678,1.11038,1800.9,1800.8,3.6]
[1746645467976,4.31818,1800.9,1800.8,3.6]
[1746645468381,1.11038,1800.9,1800.8,3.6]
[1746645470383,4.31818,1800.9,1800.8,4.71045]
[1746645470681,2.2916,1801.0,1800.8,4.71045]
[1746645470682,1.11037,1801.0,1800.8,3.6]
[1746645470877,1.11037,1801.0,1800.9,2.2922]
[1746645471279,1.11037,1801.0,1800.9,5.8922]
[1746645471980,1.11037,1801.0,1800.9,7.00258]
[1746645472174,1.11037,1801.0,1800.9,5.8922]
[1746645472574,3.36247,1801.0,1800.9,5.8922]
[1746645473080,3.36247,1801.0,1800.9,7.00258]
[1746645474070,3.36242,1801.0,1800.9,7.00258]
[1746645474276,3.2078,1801.2,1801.1,1.11026]
[1746645474881,1.11017,1801.3,1801.2,1.1102]
[1746645475079,1.11017,1801.3,1801.2,3.2449]
[1746645475473,3.34593,1801.4,1801.3,1.11014]
[1746645475672,3.34593,1801.4,1801.3,2.2641]
[1746645476190,3.34593,1801.4,1801.3,5.8641]
[1746645478583,3.34593,1801.4,1801.3,3.6]
[1746645478888,10.56453,1801.4,1801.3,0.54729812]
[1746645479391,10.56453,1801.4,1800.8,2.1268]
[1746645479392,1.11059,1800.6,1800.5,1.1106]
[1746645479581,1.11059,1800.6,1800.4,2.2779]
[1746645479582,1.11063,1800.5,1800.4,2.2779]
[1746645479775,1.11075,1800.3,1800.2,7.38564906]
[1746645480486,3.23665,1800.3,1800.2,7.38564906]
[1746645481589,1.11088,1800.1,1800.0,0.02059]
[1746645481784,8.92768,1800.1,1800.0,0.02059]
[1746645482582,4.31868,1800.1,1800.0,0.02059]
[1746645482880,8.92468,1800.1,1800.0,0.02059]
[1746645483688,1.11094,1800.0,1799.9,3.6]
[1746645483986,3.31724,1800.0,1799.9,3.6]
[1746645485086,3.31724,1800.0,1799.7,2.1388]
[1746645485290,5.98539,1799.9,1799.4,7.38564906]
[1746645485486,5.98539,1799.9,1799.4,2.1388]
[1746645485487,1.11117,1799.7,1799.4,2.1388]
[1746645485683,3.3174,1799.8,1799.4,5.3466]
[1746645485992,1.11096,1800.0,1799.8,1.11106]
[1746645486197,9.9972,1800.1,1799.8,1.11106]
[1746645486198,4.31872,1800.1,1799.9,2.2001]
[1746645486388,6.7548,1800.2,1800.0,1.11094]
[1746645486686,1.11082,1800.2,1800.1,2.2001]
[1746645487482,1.11088,1800.1,1800.0,3.6]
[1746645487793,3.25868,1800.1,1800.0,3.6]
[1746645487991,7.86568,1800.1,1800.0,3.6]
[1746645488285,7.86568,1800.1,1799.8,3.31116]
[1746645488286,1.111,1799.9,1799.8,3.31116]
[1746645488684,1.111,1799.9,1799.8,2.2001]
[1746645488882,1.11106,1799.8,1799.4,1.11127]
[1746645489193,1.11131,1799.4,1799.3,12.89467906]
[1746645489491,1.11122,1799.6,1799.5,1.11123]
[1746645490090,1.11117,1799.7,1799.6,1.11119]
[1746645490485,1.11112,1799.7,1799.6,2.1274]
[1746645491087,1.11119,1799.6,1799.5,3.6]
[1746645491286,4.31899,1799.6,1799.5,3.6]
[1746645491988,11.11519,1799.6,1799.5,3.6]
[1746645492190,1.11137,1799.3,1799.2,0.02462]
[1746645492688,3.2078,1799.4,1799.2,1.13601]
[1746645492894,6.42391,1799.4,1799.3,2.3122]
[1746645493387,6.42391,1799.4,1799.3,3.6]
[1746645494193,6.42391,1799.4,1799.3,5.9122]
[1746645494395,6.42391,1799.4,1799.3,3.6]
[1746645495194,1.11137,1799.3,1799.2,0.02462]
[1746645495386,3.31937,1799.3,1799.2,0.02462]
[1746645498093,8.31937,1799.3,1799.2,1e-05]
[1746645498296,11.91937,1799.3,1799.2,1e-05]
[1746645498699,12.02032232,1799.3,1799.2,1e-05]
[1746645499198,8.42032232,1799.3,1799.2,1e-05]
[1746645500094,3.42032232,1799.3,1799.2,1e-05]
[1746645500300,1.11163,1798.9,1798.8,1.11164]
[1746645500492,4.31931,1799.1,1799.0,1.11156]
[1746645500789,4.31931,1799.1,1798.9,4.3598]
[1746645500790,1.11156,1799.0,1798.9,4.3598]
[1746645501096,4.31934,1799.1,1799.0,1.11156]
[1746645501297,7.8168,1799.3,1799.1,1.11147]
[1746645501594,3.2078,1799.5,1799.2,1.11137]
[1746645501791,1.11137,1799.3,1799.2,1.11137]
[1746645502197,1.11137,1799.3,1799.2,4.71137]
[1746645502798,1.11136,1799.4,1799.3,1.11137]
[1746645503194,1.11137,1799.3,1799.2,1.11139]
[1746645503797,10.1304,1799.5,1799.2,1.11139]
[1746645503999,1.11137,1799.3,1799.2,1.11139]
[1746645504201,1.11132,1799.4,1799.3,1.11134]
[1746645504599,10.1304,1799.5,1799.3,1.11134]
[1746645504600,11.24169,1799.5,1799.3,3.26584]
[1746645505102,11.24169,1799.5,1799.3,6.86584]
[1746645505298,8.92709,1799.5,1799.3,6.86584]
[1746645505494,3.2078,1799.5,1799.4,3.23241]
[1746645506197,4.31897,1799.7,1799.6,1.11119]
[1746645506395,3.2078,1799.7,1799.6,1.11119]
[1746645506993,3.41251,1799.9,1799.8,1.11106]
[1746645507301,1.11106,1799.8,1799.7,3.2616]
[1746645507891,6.62034,1799.9,1799.8,1.11106]
[1746645508107,4.3188,1799.9,1799.8,4.71106]
[1746645508900,3.2078,1799.9,1799.8,4.71106]
[1746645509098,1.11096,1800.0,1799.9,1.111]
[1746645509299,1.11096,1800.0,1799.9,2.1925]
[1746645509597,1.111,1799.9,1799.8,3.6]
[1746645509801,8.6356,1799.9,1799.8,3.6]
[1746645510191,1.11125,1799.5,1799.4,1.11128]
[1746645510396,1.11122,1799.6,1799.4,1.11126]
[1746645510600,9.9386,1799.7,1799.4,1.11126]
[1746645510801,1.11125,1799.5,1799.4,1.11126]
[1746645511203,1.11125,1799.5,1799.4,4.71126]
[1746645513905,1.11123,1799.6,1799.5,1.11121]
[1746645514104,1.11123,1799.6,1799.5,4.71121]
[1746645514305,1.11123,1799.6,1799.5,3.6]
[1746645514607,3.29493,1799.6,1799.5,3.6]
[1746645516109,1.11167,1798.9,1798.6,2.77952]
[1746645516297,1.11154,1799.1,1799.0,1.11151]
[1746645516503,1.11156,1799.0,1798.9,1.11157]
[1746645516808,1.11139,1799.3,1799.2,1.1114]
[1746645517011,1.11153,1799.1,1799.0,1.11154]
[1746645517204,7.8148,1799.4,1798.9,2.77904]
[1746645517415,1.11147,1799.2,1799.1,1.11148]
[1746645517708,1.11148,1799.2,1799.1,1.11148]
[1746645518011,1.1115,1799.1,1799.0,1.11151]
[1746645518211,1.1115,1799.1,1799.0,4.71151]
[1746645518599,1.1115,1799.1,1799.0,4.71156]
[1746645519403,1.1115,1799.1,1799.0,3.6]
[1746645519604,3.3353,1799.1,1799.0,3.6]
[1746645520006,3.3353,1799.1,1799.0,6.87236]
[1746645520305,1.1115,1799.1,1799.0,5.7608]
[1746645520507,6.54308,1799.2,1799.1,1.1115]
[1746645520702,6.54308,1799.2,1799.1,2.1608]
[1746645522716,6.54308,1799.2,1799.1,3.2723]
[1746645523209,6.54308,1799.2,1799.1,2.1608]
[1746645525013,4.31928,1799.2,1799.1,3.2723]
[1746645525415,4.31928,1799.2,1799.1,2.1608]
[1746645526319,1.1115,1799.1,1799.0,3.6]
[1746645528120,1.11168,1798.8,1798.7,4.31954]
[1746645528618,1.11168,1798.8,1798.7,3.2078]
[1746645528816,1.11168,1798.8,1798.7,4.31954]
[1746645529317,1.11168,1798.8,1798.7,7.91954]
[1746645529918,5.71967,1798.9,1798.8,1.11168]
[1746645530121,1.11167,1798.9,1798.8,1.11168]
[1746645530312,8.9284,1799.0,1798.9,1.11162]
[1746645530511,4.3194,1799.0,1798.9,1.11162]
[1746645531227,4.3194,1799.0,1798.9,4.71162]
[1746645531519,4.3194,1799.0,1798.9,3.6]
[1746645531815,4.3194,1799.0,1798.9,4.71162]
[1746645532023,4.31925,1799.2,1799.1,1.11144]
[1746645532624,4.609,1799.4,1799.3,1.11137]
[1746645532917,8.92809,1799.5,1799.4,1.11131]
[1746645533315,1.11131,1799.4,1799.3,3.6]
[1746645533516,7.8168,1799.5,1799.3,3.6]
[1746645533918,8.9281,1799.5,1799.4,1.11131]
[1746645534320,1.11131,1799.4,1799.3,4.71134]
[1746645535119,4.31909,1799.5,1799.4,1.11131]
[1746645535720,1.11131,1799.4,1799.3,4.71132]
[1746645536715,1.11131,1799.4,1799.3,3.6]
[1746645537928,1.11131,1799.4,1799.3,4.71137]
[1746645538221,1.11131,1799.4,1799.3,3.6]
[1746645538726,1.11131,1799.4,1799.3,4.71137]
[1746645538924,3.2078,1799.5,1799.4,1.11131]
[1746645539123,4.31882,1799.9,1799.8,1.11103]
[1746645539324,1.11102,1799.9,1799.8,1.11103]
[1746645539714,5.41953419,1800.0,1799.9,1.11099]
[1746645540120,5.41953419,1800.0,1799.9,4.71099]
[1746645540423,9.73827419,1800.0,1799.9,4.71099]
[1746645540717,9.73827419,1800.0,1799.9,3.6]
[1746645540924,14.73827419,1800.0,1799.9,3.6]
[1746645541321,2.77766,1799.8,1799.4,1.11126]
[1746645541522,7.8128,1799.8,1799.3,43.57838]
[1746645541722,1.11121,1799.6,1799.5,1.11123]
[1746645541927,1.11124,1799.6,1799.5,1.11125]
[1746645542126,1.11124,1799.6,1799.5,4.71125]
[1746645542526,1.11124,1799.6,1799.5,3.6]
[1746645542729,1.11124,1799.6,1799.5,4.71125]
[1746645543328,3.2078,1799.8,1799.5,3.6]
[1746645543530,3.2078,1799.8,1799.7,1.11112]
[1746645543731,1.11119,1799.7,1799.6,1.11117]
[1746645543922,1.11119,1799.6,1799.5,4.71122]
[1746645544321,1.11115,1799.7,1799.6,1.11114]
[1746645544522,1.11119,1799.6,1799.5,4.7112]
[1746645544929,4.31888,1799.8,1799.7,1.11112]
[1746645545121,1.11108,1799.8,1799.7,1.11112]
[1746645545322,1.11116,1799.7,1799.6,1.11114]
[1746645545524,1.11111,1799.8,1799.7,1.11109]
[1746645546226,1.11111,1799.8,1799.7,4.71109]
[1746645546927,1.11104,1799.9,1799.8,1.111]
[1746645547322,1.11104,1799.9,1799.8,3.6]
[1746645547523,4.3188,1800.0,1799.9,1.111]
[1746645547718,1.111,1799.9,1799.8,4.71102]
[1746645548131,1.111,1799.9,1799.8,1.11102]
[1746645548326,4.31878,1800.0,1799.9,1.111]
[1746645548532,1.11087,1800.2,1800.1,1.11084]
[1746645549331,1.11088,1800.1,1800.0,4.71089]
[1746645549731,1.11088,1800.1,1800.0,3.6]
[1746645550530,1.11086,1800.2,1800.1,1.11085]
[1746645551319,3.2078,1800.6,1800.1,16.7128]
[1746645551528,6.53006419,1800.7,1800.6,1.11057]
[1746645551824,1.1106,1800.6,1800.5,1.11058]
[1746645552333,5.41953419,1800.7,1800.6,1.11057]
[1746645553131,5.41953419,1800.7,1800.5,3.6]
[1746645553328,1.11057,1800.6,1800.5,3.6]
[1746645554130,2.77664,1800.5,1800.1,1.11084]
[1746645554331,1.1108,1800.3,1800.2,1.11082]
[1746645554532,1.11073,1800.4,1800.3,1.11075]
[1746645555230,1.1106,1800.6,1800.5,1.11062]
[1746645555433,1.11063,1800.5,1800.4,1.11064]
[1746645555639,1.11056,1800.7,1800.3,6.37687]
[1746645555933,7.8108,1800.8,1800.4,1.11064]
[1746645556133,7.8108,1800.8,1800.4,3.6]
[1746645556324,1.1106,1800.6,1800.5,1.11061]
[1746645556527,1.11054,1800.7,1800.6,1.11054]
[1746645557135,1.1106,1800.6,1800.5,4.71059]
[1746645557335,1.11054,1800.7,1800.6,1.11054]
[1746645557530,4.31828,1800.8,1800.7,1.11051]
[1746645557728,4.31825,1800.8,1800.7,1.11051]
[1746645558334,4.31825,1800.8,1800.7,4.71051]
[1746645558539,3.2078,1800.8,1800.7,4.71051]
[1746645558730,3.2078,1801.0,1800.8,1.11038]
[1746645559033,1.1104,1800.9,1800.8,1.11038]
[1746645559830,1.11045,1800.8,1800.7,3.6]
[1746645560230,1.11053,1800.7,1800.6,1.11051]
[1746645560431,1.11049,1800.8,1800.7,1.11045]
[1746645561244,1.11049,1800.8,1800.7,4.71045]
[1746645561536,3.2078,1801.0,1800.7,3.6]
[1746645561841,1.11039,1801.0,1800.9,1.11038]
[1746645562037,1.1103,1801.1,1801.0,1.11026]
[1746645563139,1.11024,1801.2,1801.1,1.1102]
[1746645563541,1.11017,1801.3,1801.2,1.11013]
[1746645564237,1.11012,1801.4,1801.3,1.11008]
[1746645564444,1.11006,1801.5,1801.4,1.11003]
[1746645564741,1.11006,1801.5,1801.2,3.6]
[1746645564742,1.11,1801.6,1801.5,1.10997]
[1746645565242,1.1101,1801.4,1801.3,1.11008]
[1746645565541,1.11007,1801.5,1801.4,1.11004]
[1746645566137,1.10999,1801.6,1801.5,1.10997]
[1746645566337,3.2078,1801.7,1801.4,3.6]
[1746645566643,1.10988,1801.8,1801.7,1.10985]
[1746645567143,2.1848,1801.8,1801.5,5.5182]
[1746645567334,1.1098,1801.9,1801.8,1.1098]
[1746645567539,1.10971,1802.0,1801.9,1.10977]
[1746645567741,1.10971,1802.0,1801.9,3.42012]
[1746645567940,3.26068,1802.1,1802.0,1.10971]
[1746645568141,1.10971,1802.0,1801.9,5.9405]
[1746645568338,5.62212,1802.2,1802.1,1.10964]
[1746645568533,1.10964,1802.1,1802.0,5.75507]
[1746645568746,5.44541,1802.2,1802.1,1.10964]
[1746645569139,5.44541,1802.2,1802.1,3.45014]
[1746645569542,4.3358,1802.2,1802.1,3.45014]
[1746645569745,5.44538,1802.2,1802.1,5.76054]
[1746645570143,4.3358,1802.2,1802.1,5.76054]
[1746645570746,5.44538,1802.2,1802.1,5.76054]
[1746645571044,1.10956,1802.3,1802.1,4.6509]
[1746645571252,1.10956,1802.3,1802.2,3.23425]
[1746645571450,3.2078,1802.4,1802.3,1.10952]
[1746645571648,5.5286,1802.6,1802.3,2.1247]
[1746645571849,1.10946,1802.4,1802.3,3.23418]
[1746645572250,3.43022,1802.5,1802.4,1.10946]
[1746645572451,3.43022,1802.5,1802.4,2.1247]
[1746645573140,3.43022,1802.5,1802.4,5.7247]
[1746645573342,2.1333,1802.6,1802.5,1.1094]
[1746645573656,1.10934,1802.6,1802.5,3.23406]
[1746645574152,1.10934,1802.6,1802.5,6.83406]
[1746645574351,2.3208,1802.7,1802.5,5.7247]
[1746645574552,1.10934,1802.6,1802.5,5.7247]
[1746645574850,1.10929,1802.7,1802.6,1.1093]
[1746645575051,3.32329,1802.7,1802.6,3.3735]
[1746645575245,3.32329,1802.7,1802.6,2.2642]
[1746645575853,3.32329,1802.7,1802.6,3.37354]
[1746645576255,3.32329,1802.7,1802.6,2.2642]
[1746645577452,2.214,1802.7,1802.6,3.37354]
[1746645577850,2.3141,1802.9,1802.6,8.24534]
[1746645578050,2.255,1803.0,1802.9,1.10915]
[1746645578255,1.10915,1802.9,1802.8,3.30028]
[1746645578553,1.10915,1802.9,1802.8,44.10028]
[1746645579248,1.10915,1802.9,1802.8,47.70028]
[1746645582452,1.10915,1802.9,1802.8,46.5911]